[Event "LAT-chT Higher League 2019"]
[Site "Riga"]
[Date "2019.10.13"]
[Round "9.11"]
[White "Ehlvest, Jaan"]
[Black "Miezis, Normunds"]
[Result "1-0"]
[ECO "B25"]
[WhiteElo "2511"]
[BlackElo "2492"]
[Annotator "ChessBase"]
[PlyCount "101"]
[EventDate "2019.02.15"]
[EventType "team-tourn"]
[EventCountry "LAT"]
[SourceTitle "playchess.com"]
[Source "ChessBase"]
[SourceQuality "1"]
[TimeControl "40/5400+30:1800+30"]

1. g3 {[%emt 0:00:06]} c5 {[%emt 0:00:49]} 2. Bg2 {[%emt 0:00:44]} Nc6 {[%emt 0:00:09]} 3. e4 {[%emt 0:00:28]} g6 {[%emt 0:01:58]} 4. Nc3 {[%emt 0:06:58]} Bg7 {[%emt 0:05:08]} 5. d3 {[%emt 0:00:13]} d6 {[%emt 0:00:27]} 6. Bg5 {[%emt 0:01:05]} Nd4 {[%emt 0:04:58]} 7. Qd2 {[%emt 0:00:47]} h6 {[%emt 0:00:27]} 8. Be3 {[%emt 0:00:07]} Nf6 {[%emt 0:01:29]} 9. h3 {[%emt 0:00:59]} e5 {[%emt 0:05:52]} 10. Nge2 {[%emt 0:07:40]} b5 {[%emt 0:07:26]} 11. Bxd4 {[%emt 0:08:09]} cxd4 {[%emt 0:01:25]} 12. Nxb5 {[%emt 0:00:25]} Rb8 {[%emt 0:00:32]} 13. c4 {[%emt 0:00:23]} dxc3 {[%emt 0:09:37]} 14. Nbxc3 {[%emt 0:05:07]} Be6 {[%emt 0:00:22]} 15. d4 {[%emt 0:12:35]} d5 {[%emt 0:06:27]} 16. exd5 {[%emt 0:25:03]} Nxd5 {[%emt 0:00:20]} 17. dxe5 {[%emt 0:01:01]} Nb4 {[%emt 0:00:10]} 18. Rd1 {[%emt 0:00:45]} Bxe5 {[%emt 0:11:40]} 19. a3 {[%emt 0:02:42]} Qxd2+ {[%emt 0:09:21]} 20. Rxd2 {[%emt 0:00:14]} Na2 {[%emt 0:04:20]} 21. Nb5 {[%emt 0:21:05]} O-O {[%emt 0:05:35]} 22. Nbd4 {[%emt 0:00:18]} Bc4 {[%emt 0:04:27]} 23. Nc6 {[%emt 0:00:57]} Rbe8 {[%emt 0:00:27]} 24. Nxe5 {[%emt 0:00:41]} Rxe5 {[%emt 0:00:12]} 25. f4 {[%emt 0:00:07]} Rxe2+ {[%emt 0:13:43]} 26. Rxe2 {[%emt 0:00:20]} Bxe2 {[%emt 0:00:06]} 27. Kxe2 {[%emt 0:00:04]} Rb8 {[%emt 0:00:06]} 28. Bd5 {[%emt 0:01:11]} Rb5 {[%emt 0:00:30]} 29. Rd1 {[%emt 0:01:14]} Nc1+ {[%emt 0:01:09]} 30. Ke3 {[%emt 0:01:06]} Nb3 {[%emt 0:00:10]} 31. Bc4 {[%emt 0:00:19]} Rb7 {[%emt 0:00:09]} 32. Rd5 {[%emt 0:00:24]} Kg7 {[%emt 0:01:12]} 33. Kd3 {[%emt 0:01:04]} a5 {[%emt 0:00:45]} 34. Kc3 {[%emt 0:00:24]} a4 {[%emt 0:00:31]} 35. Bb5 {[%emt 0:00:26]} Re7 {[%emt 0:00:37]} 36. Bxa4 {[%emt 0:00:34]} Re3+ {[%emt 0:00:12]} 37. Kc2 {[%emt 0:00:14]} Na1+ {[%emt 0:00:10]} 38. Kb1 {[%emt 0:00:08]} Nb3 {[%emt 0:00:03]} 39. Bxb3 {[%emt 0:01:22]} Rxb3 {[%emt 0:00:03]} 40. a4 {[%emt 0:00:15]} g5 {[%emt 0:00:25]} 41. fxg5 {[%emt 0:30:30]} Rxg3 {[%emt 0:30:09]} 42. gxh6+ {[%emt 0:00:20]} Kxh6 {[%emt 0:00:11]} 43. a5 {[%emt 0:00:13]} Rxh3 {[%emt 0:00:33]} 44. a6 {[%emt 0:01:11]} Kg6 {[%emt 0:00:02]} 45. a7 {[%emt 0:01:01]} Rh8 {[%emt 0:00:03]} 46. Ra5 {[%emt 0:00:06]} Ra8 {[%emt 0:00:09]} 47. b4 {[%emt 0:00:02]} f5 {[%emt 0:00:08]} 48. b5 {[%emt 0:00:02]} f4 {[%emt 0:00:07]} 49. b6 {[%emt 0:00:05]} f3 {[%emt 0:00:16]} 50. Ra2 {[%emt 0:00:46]} Kg7 {[%emt 0:00:45]} 51. Rf2 {[%emt 0:00:15]} 1-0

[Event "LAT-chT Higher League 2019"]
[Site "Riga"]
[Date "2019.10.13"]
[Round "9.12"]
[White "Stepins, Edgars"]
[Black "Kanep, Meelis"]
[Result "1/2-1/2"]
[ECO "D02"]
[WhiteElo "2292"]
[BlackElo "2448"]
[Annotator "NA"]
[PlyCount "53"]
[EventDate "2019.02.15"]
[EventType "team-tourn"]
[EventCountry "LAT"]
[SourceTitle "playchess.com"]
[Source "ChessBase"]
[SourceQuality "1"]
[TimeControl "40/5400+30:1800+30"]

1. d4 {[%emt 0:00:00]} Nf6 {[%emt 0:00:00]} 2. Nf3 {[%emt 0:00:00]} e6 {[%emt 0:00:38]} 3. Bf4 {[%emt 0:00:50]} c5 {[%emt 0:01:12]} 4. c3 {[%emt 0:01:24]} d5 {[%emt 0:02:10]} 5. e3 {[%emt 0:03:36]} Bd6 {[%emt 0:05:57]} 6. Ne5 {[%emt 0:02:59]} O-O {[%emt 0:08:24]} 7. Nd2 {[%emt 0:04:15]} Qc7 {[%emt 0:01:05]} 8. Bg3 {[%emt 0:03:36]} Nbd7 {[%emt 0:04:38]} 9. f4 {[%emt 0:01:15]} b6 {[%emt 0:06:51]} 10. Bd3 {[%emt 0:03:03]} a5 {[%emt 0:01:06]} 11. Qe2 {[%emt 0:03:33]} Bb7 {[%emt 0:00:15]} 12. O-O {[%emt 0:00:56]} c4 {[%emt 0:11:00]} 13. Bc2 {[%emt 0:00:17]} b5 {[%emt 0:00:06]} 14. Bh4 {[%emt 0:08:02]} Ne4 {[%emt 0:12:44]} 15. Bxe4 {[%emt 0:18:05]} dxe4 {[%emt 0:02:13]} 16. a4 {[%emt 0:00:08]} b4 {[%emt 0:16:52]} 17. cxb4 {[%emt 0:08:22]} Bxb4 {[%emt 0:01:45]} 18. Ndxc4 {[%emt 0:06:36]} Ba6 {[%emt 0:00:24]} 19. Rfc1 {[%emt 0:01:03]} Nb6 {[%emt 0:03:29]} 20. Nxb6 {[%emt 0:06:36]} Qxb6 {[%emt 0:00:36]} 21. Qd1 {[%emt 0:01:59]} Qb7 {[%emt 0:03:35]} 22. b3 {[%emt 0:07:28]} Rfc8 {[%emt 0:04:25]} 23. h3 {[%emt 0:05:10]} Qd5 {[%emt 0:02:38]} 24. Qh5 {[%emt 0:04:49]} Qb7 {[%emt 0:04:50]} 25. Qd1 {[%emt 0:03:20]} Qd5 {[%emt 0:00:16]} 26. Qh5 {[%emt 0:00:14]} Qb7 {[%emt 0:00:10]} 27. Qd1 {[%emt 0:00:08]} 1/2-1/2

[Event "LAT-chT Higher League 2019"]
[Site "Riga"]
[Date "2019.10.13"]
[Round "9.13"]
[White "Lanka, Zigurds"]
[Black "Agafonov, Yuri Dr"]
[Result "1-0"]
[ECO "B03"]
[WhiteElo "2386"]
[BlackElo "2097"]
[Annotator "NA"]
[PlyCount "85"]
[EventDate "2019.02.15"]
[EventType "team-tourn"]
[EventCountry "LAT"]
[SourceTitle "playchess.com"]
[Source "ChessBase"]
[SourceQuality "1"]
[TimeControl "40/5400+30:1800+30"]

1. e4 {[%emt 0:01:18]} Nf6 {[%emt 0:00:42]} 2. e5 {[%emt 0:00:11]} Nd5 {[%emt 0:00:02]} 3. c4 {[%emt 0:00:11]} Nb6 {[%emt 0:00:02]} 4. d4 {[%emt 0:00:08]} d6 {[%emt 0:00:01]} 5. exd6 {[%emt 0:00:14]} exd6 {[%emt 0:01:22]} 6. h3 {[%emt 0:00:10]} Bf5 {[%emt 0:00:23]} 7. Nf3 {[%emt 0:00:39]} Be7 {[%emt 0:00:19]} 8. Nc3 {[%emt 0:00:18]} O-O {[%emt 0:00:15]} 9. Be2 {[%emt 0:00:14]} Bf6 {[%emt 0:00:18]} 10. O-O {[%emt 0:00:18]} Nc6 {[%emt 0:02:23]} 11. b3 {[%emt 0:00:27]} d5 {[%emt 0:01:14]} 12. c5 {[%emt 0:00:58]} Nc8 {[%emt 0:00:09]} 13. Be3 {[%emt 0:00:18]} Re8 {[%emt 0:00:50]} 14. Rc1 {[%emt 0:00:27]} a6 {[%emt 0:02:50]} 15. Qd2 {[%emt 0:00:40]} h6 {[%emt 0:03:47]} 16. Nh2 {[%emt 0:00:47]} N8e7 {[%emt 0:02:28]} 17. g4 {[%emt 0:04:57]} Be4 {[%emt 0:02:06]} 18. f3 {[%emt 0:00:46]} Bh7 {[%emt 0:00:17]} 19. f4 {[%emt 0:00:45]} Nf5 {[%emt 0:00:41]} 20. Bf2 {[%emt 0:02:22]} Nfxd4 {[%emt 0:02:24]} 21. Bd3 {[%emt 0:01:43]} Bxd3 {[%emt 0:14:24]} 22. Qxd3 {[%emt 0:00:07]} g6 {[%emt 0:00:06]} 23. Rfd1 {[%emt 0:01:27]} Bg7 {[%emt 0:02:38]} 24. Qf1 {[%emt 0:01:28]} Re7 {[%emt 0:17:17]} 25. Bh4 {[%emt 0:05:18]} g5 {[%emt 0:20:16]} 26. fxg5 {[%emt 0:00:50]} Re6 {[%emt 0:02:33]} 27. Rd2 {[%emt 0:04:27]} Be5 {[%emt 0:01:34]} 28. g6 {[%emt 0:02:30]} Qd7 {[%emt 0:05:28]} 29. Qxf7+ {[%emt 0:00:54]} Qxf7 {[%emt 0:00:01]} 30. gxf7+ {[%emt 0:00:10]} Kxf7 {[%emt 0:00:31]} 31. Rf1+ {[%emt 0:00:15]} Kg7 {[%emt 0:02:11]} 32. Nxd5 {[%emt 0:01:25]} Rf8 {[%emt 0:00:31]} 33. Rxf8 {[%emt 0:01:43]} Kxf8 {[%emt 0:00:01]} 34. Rf2+ {[%emt 0:00:59]} Kg7 {[%emt 0:00:18]} 35. Nf1 {[%emt 0:02:02]} Nb5 {[%emt 0:08:45]} 36. Nfe3 {[%emt 0:00:38]} Nc3 {[%emt 0:00:41]} 37. Kg2 {[%emt 0:04:43]} Ne4 {[%emt 0:03:27]} 38. Nf5+ {[%emt 0:01:03]} Kh7 {[%emt 0:00:29]} 39. Rc2 {[%emt 0:02:34]} b5 {[%emt 0:03:55]} 40. cxb6 {[%emt 0:01:19]} cxb6 {[%emt 0:00:01]} 41. Re2 {[%emt 0:32:26]} Bd4 {[%emt 0:31:01]} 42. Nxd4 {[%emt 0:00:29]} Nxd4 {[%emt 0:00:03]} 43. Rxe4 {[%emt 0:00:10]} 1-0

[Event "LAT-chT Higher League 2019"]
[Site "Riga"]
[Date "2019.10.13"]
[Round "9.15"]
[White "Gorozhankina, Julia"]
[Black "Berzina, Ilze"]
[Result "1/2-1/2"]
[ECO "B13"]
[WhiteElo "2068"]
[BlackElo "2216"]
[Annotator "NA"]
[PlyCount "126"]
[EventDate "2019.02.15"]
[EventType "team-tourn"]
[EventCountry "LAT"]
[SourceTitle "playchess.com"]
[Source "ChessBase"]
[SourceQuality "1"]
[TimeControl "40/5400+30:1800+30"]

1. e4 {[%emt 0:00:35]} c6 {[%emt 0:00:14]} 2. d4 {[%emt 0:00:05]} d5 {[%emt 0:00:04]} 3. exd5 {[%emt 0:00:02]} cxd5 {[%emt 0:00:06]} 4. c4 {[%emt 0:00:02]} Nf6 {[%emt 0:00:12]} 5. Nc3 {[%emt 0:00:13]} Nc6 {[%emt 0:00:20]} 6. Nf3 {[%emt 0:00:04]} Be6 {[%emt 0:00:17]} 7. Bg5 {[%emt 0:01:38]} g6 {[%emt 0:00:41]} 8. cxd5 {[%emt 0:02:49]} Nxd5 {[%emt 0:01:11]} 9. Bb5 {[%emt 0:01:33]} Bg7 {[%emt 0:05:52]} 10. Bxc6+ {[%emt 0:06:47]} bxc6 {[%emt 0:00:05]} 11. Qd2 {[%emt 0:00:40]} h6 {[%emt 0:01:17]} 12. Bh4 {[%emt 0:02:39]} O-O {[%emt 0:00:51]} 13. O-O {[%emt 0:02:16]} Nb6 {[%emt 0:24:08]} 14. h3 {[%emt 0:10:11]} Nc4 {[%emt 0:08:08]} 15. Qc2 {[%emt 0:09:12]} Rb8 {[%emt 0:06:53]} 16. Na4 {[%emt 0:05:00]} Bd5 {[%emt 0:02:28]} 17. Bg3 {[%emt 0:07:31]} Rb4 {[%emt 0:04:48]} 18. b3 {[%emt 0:12:35]} Nd6 {[%emt 0:04:44]} 19. Ne5 {[%emt 0:16:10]} Nf5 {[%emt 0:03:46]} 20. Qc5 {[%emt 0:06:51]} Rxd4 {[%emt 0:04:24]} 21. Rae1 {[%emt 0:01:32]} Nxg3 {[%emt 0:01:21]} 22. fxg3 {[%emt 0:01:41]} Rd2 {[%emt 0:01:28]} 23. Rf2 {[%emt 0:00:52]} Rxf2 {[%emt 0:01:13]} 24. Qxf2 {[%emt 0:01:09]} Qd6 {[%emt 0:00:51]} 25. Nf3 {[%emt 0:00:50]} e5 {[%emt 0:02:11]} 26. Qc5 {[%emt 0:05:03]} Qxc5+ {[%emt 0:05:11]} 27. Nxc5 {[%emt 0:00:04]} Re8 {[%emt 0:00:28]} 28. Kh2 {[%emt 0:01:31]} e4 {[%emt 0:00:56]} 29. Nd2 {[%emt 0:00:54]} f5 {[%emt 0:00:39]} 30. Nf1 {[%emt 0:00:33]} Bd4 {[%emt 0:04:23]} 31. Nd3 {[%emt 0:00:54]} Kf7 {[%emt 0:00:51]} 32. Nf4 {[%emt 0:00:12]} e3 {[%emt 0:00:34]} 33. Ne2 {[%emt 0:00:46]} c5 {[%emt 0:01:33]} 34. g4 {[%emt 0:01:25]} fxg4 {[%emt 0:01:39]} 35. hxg4 {[%emt 0:00:06]} Be6 {[%emt 0:03:22]} 36. g5 {[%emt 0:00:56]} hxg5 {[%emt 0:00:45]} 37. Kg1 {[%emt 0:00:26]} Bf5 {[%emt 0:01:36]} 38. Nh2 {[%emt 0:00:26]} g4 {[%emt 0:00:36]} 39. Nf1 {[%emt 0:00:18]} Kg7 {[%emt 0:00:49]} 40. Nfg3 {[%emt 0:00:42]} Bc8 {[%emt 0:01:23]} 41. Rf1 {[%emt 0:31:21]} Bb7 {[%emt 0:31:02]} 42. Rf4 {[%emt 0:00:33]} Rf8 {[%emt 0:00:32]} 43. Nxd4 {[%emt 0:00:59]} cxd4 {[%emt 0:00:07]} 44. Rxd4 {[%emt 0:00:05]} Rf7 {[%emt 0:01:01]} 45. Rd1 {[%emt 0:00:55]} Kh6 {[%emt 0:01:09]} 46. Re1 {[%emt 0:00:26]} Rf2 {[%emt 0:01:54]} 47. Re2 {[%emt 0:00:37]} Rxe2 {[%emt 0:00:06]} 48. Nxe2 {[%emt 0:00:03]} Ba6 {[%emt 0:00:15]} 49. Kf1 {[%emt 0:00:27]} Kg5 {[%emt 0:00:08]} 50. Ke1 {[%emt 0:01:22]} Kf5 {[%emt 0:00:25]} 51. Nc3 {[%emt 0:00:36]} Ke5 {[%emt 0:00:26]} 52. g3 {[%emt 0:00:31]} Kd4 {[%emt 0:00:48]} 53. Ne2+ {[%emt 0:00:03]} Ke4 {[%emt 0:00:23]} 54. Nf4 {[%emt 0:00:15]} Kf3 {[%emt 0:00:24]} 55. Nxg6 {[%emt 0:00:05]} Kxg3 {[%emt 0:00:05]} 56. b4 {[%emt 0:00:28]} Kf3 {[%emt 0:00:55]} 57. a4 {[%emt 0:00:08]} Bd3 {[%emt 0:02:04]} 58. Ne5+ {[%emt 0:00:10]} Ke4 {[%emt 0:00:32]} 59. Nxg4 {[%emt 0:00:03]} Kd4 {[%emt 0:01:06]} 60. b5 {[%emt 0:00:29]} Kc5 {[%emt 0:02:33]} 61. Nxe3 {[%emt 0:00:12]} Kb4 {[%emt 0:00:19]} 62. Nd5+ {[%emt 0:00:25]} Kxa4 {[%emt 0:00:09]} 63. b6 {[%emt 0:00:03]} axb6 {[%emt 0:02:49]} 1/2-1/2